fUST/lending_fUST_20260607
["ID","MTS","AMOUNT","RATE_DAILY","PERIOD"]
[424352092,1780781448000,-289.7420857,0.00021378,2]
[424352097,1780781448000,-2723.57915318,0.00022031,2]
[424352103,1780781448000,-184.67,0.00022636,10]
[424352101,1780781448000,-1130.79,0.00022466,2]
[424352089,1780781448000,-233.04,0.00021109,2]
[424352102,1780781448000,-398.94625,0.00022479,2]
[424352126,1780781449000,-160.0,0.00023752,7]
[424352127,1780781449000,-234.05762207,0.00023761,7]
[424352128,1780781475000,-5000.0,0.00016727,2]
[424352129,1780782151000,-18411.0902106,0.0001,2]
[424352130,1780782164000,-6088.83036308,0.0001,2]
[424352131,1780782178000,-6088.83036308,0.0001,2]
[424352132,1780782192000,-198.7017113,9.999e-05,2]
[424352133,1780782207000,-198.7017113,9.999e-05,2]
[424352134,1780782221000,-150.06480535,9.999e-05,2]
[424352135,1780782235000,-150.06480535,9.999e-05,2]
[424352136,1780782249000,-1.168678,9.999e-05,2]
[424352137,1780782302000,-459.45330204,0.0001,2]
[424352138,1780782317000,-151.90924753,0.0001,2]
[424352149,1780782549000,-500.0,9.998e-05,2]
[424352153,1780782549000,-500.0,9.998e-05,2]
[424352155,1780782549000,-500.0,9.998e-05,2]
[424352151,1780782549000,-500.0,9.998e-05,2]
[424352154,1780782549000,-500.0,9.998e-05,2]
[424352152,1780782549000,-500.0,9.998e-05,2]
[424352158,1780782549000,-500.0,9.998e-05,2]
[424352148,1780782549000,-500.0,9.998e-05,2]
[424352173,1780782549000,-500.0,9.998e-05,2]
[424352146,1780782549000,-500.0,9.998e-05,2]
[424352147,1780782549000,-500.0,9.998e-05,2]
[424352145,1780782549000,-500.0,9.998e-05,2]
[424352144,1780782549000,-500.0,9.998e-05,2]
[424352143,1780782549000,-500.0,9.998e-05,2]
[424352142,1780782549000,-500.0,9.998e-05,2]
[424352141,1780782549000,-500.0,9.998e-05,2]
[424352156,1780782549000,-500.0,9.998e-05,2]
[424352150,1780782549000,-500.0,9.998e-05,2]
[424352159,1780782549000,-500.0,9.998e-05,2]
[424352178,1780782549000,-500.0,9.998e-05,2]
[424352163,1780782549000,-500.0,9.998e-05,2]
[424352177,1780782549000,-458.23490204,9.998e-05,2]
[424352176,1780782549000,-500.0,9.998e-05,2]
[424352175,1780782549000,-500.0,9.998e-05,2]
[424352174,1780782549000,-500.0,9.998e-05,2]
[424352171,1780782549000,-500.0,9.998e-05,2]
[424352157,1780782549000,-500.0,9.998e-05,2]
[424352172,1780782549000,-500.0,9.998e-05,2]
[424352169,1780782549000,-500.0,9.998e-05,2]
[424352170,1780782549000,-500.0,9.998e-05,2]
[424352167,1780782549000,-500.0,9.998e-05,2]
[424352166,1780782549000,-500.0,9.998e-05,2]
[424352165,1780782549000,-500.0,9.998e-05,2]
[424352164,1780782549000,-500.0,9.998e-05,2]
[424352162,1780782549000,-500.0,9.998e-05,2]
[424352161,1780782549000,-500.0,9.998e-05,2]
[424352160,1780782549000,-500.0,9.998e-05,2]
[424352168,1780782549000,-500.0,9.998e-05,2]
[424352188,1780782550000,-500.0,9.998e-05,2]
[424352186,1780782550000,-500.0,9.998e-05,2]
[424352189,1780782550000,-500.0,9.998e-05,2]
[424352187,1780782550000,-500.0,9.998e-05,2]
[424352184,1780782550000,-500.0,9.998e-05,2]
[424352179,1780782550000,-589.40336688,9.998e-05,2]
[424352182,1780782550000,-500.0,9.998e-05,2]
[424352183,1780782550000,-500.0,9.998e-05,2]
[424352181,1780782550000,-500.0,9.998e-05,2]
[424352180,1780782550000,-500.0,9.998e-05,2]
[424352191,1780782550000,-500.0,9.998e-05,2]
[424352185,1780782550000,-200.0,9.998e-05,2]
[424352190,1780782550000,-500.0,9.998e-05,2]
[424352195,1780782550000,-500.0,9.998e-05,2]
[424352193,1780782550000,-500.0,9.998e-05,2]
[424352194,1780782550000,-500.0,9.998e-05,2]
[424352197,1780782550000,-500.0,9.998e-05,2]
[424352196,1780782550000,-390.03203465,9.998e-05,2]
[424352198,1780782550000,-500.0,9.998e-05,2]
[424352206,1780782550000,-4742.83820795,0.0001,2]
[424352199,1780782550000,-500.0,9.998e-05,2]
[424352200,1780782550000,-500.0,9.998e-05,2]
[424352201,1780782550000,-500.0,9.998e-05,2]
[424352202,1780782550000,-500.0,9.998e-05,2]
[424352204,1780782550000,-3138.9868326,0.0001,2]
[424352203,1780782550000,-474.82932498,0.0001,2]
[424352205,1780782550000,-311.07359512,0.0001,2]
[424352192,1780782550000,-500.0,9.998e-05,2]
[424352208,1780782553000,-259.58829867,0.0001,2]
[424352207,1780782553000,-257.16179205,0.0001,2]
[424352210,1780782563000,-2795.04447531,0.0001,2]
[424352209,1780782563000,-188.07565615,0.0001,2]
[424352239,1780782634000,-171.06089497,9.999e-05,2]
[424352240,1780782635000,-261.16488666,9.999e-05,2]
[424352242,1780782635000,-500.0,9.999e-05,2]
[424352243,1780782635000,-500.0,9.999e-05,2]
[424352253,1780782635000,-183.1585809,0.00018056,2]
[424352245,1780782635000,-2204.95552469,0.0001,2]
[424352244,1780782635000,-415.8234902,9.999e-05,2]
[424352246,1780782635000,-151.0,0.00010799,2]
[424352247,1780782635000,-467.05609845,0.00016445,2]
[424352248,1780782635000,-532.94390155,0.00016445,2]
[424352249,1780782635000,-188.79550702,0.0001788,2]
[424352251,1780782635000,-155.32346705,0.0001788,2]
[424352250,1780782635000,-152.44653004,0.0001788,2]
[424352241,1780782635000,-500.0,9.999e-05,2]
[424352252,1780782635000,-178.699236,0.00018031,2]
[424352255,1780782635000,-248.16602026,0.00018672,2]
[424352257,1780782635000,-377.59101403,0.00018708,2]
[424352256,1780782635000,-278.12236027,0.00018672,2]
[424352259,1780782635000,-310.64693411,0.00018708,2]
[424352258,1780782635000,-304.89306008,0.00018708,2]
[424352264,1780782635000,-165.79186341,0.0001904,2]
[424352265,1780782635000,-277.64729775,0.0001904,2]
[424352262,1780782635000,-150.06480535,0.00019029,2]
[424352261,1780782635000,-198.7017113,0.00019029,2]
[424352263,1780782635000,-238.84495343,0.00019038,2]
[424352260,1780782635000,-496.33204053,0.00019029,2]
[424352254,1780782635000,-191.7388,0.00018608,2]
[424352345,1780782637000,-193.1613905,0.00019054,2]
[424352341,1780782637000,-278.59742279,0.0001904,2]
[424352349,1780782637000,-500.0,0.00019159,2]
[424352347,1780782637000,-3329.8312767,0.00019054,2]
[424352343,1780782637000,-247.45393688,0.0001904,2]
[424352436,1780782638000,-623.0,0.00019995,2]
[424352446,1780782638000,-762.23265019,0.00019995,2]
[424352440,1780782638000,-623.0,0.00019995,2]
[424352444,1780782638000,-943.97753508,0.00019995,2]
[424352427,1780782638000,-623.0,0.00019995,2]
[424352415,1780782638000,-623.0,0.00019995,2]
[424352431,1780782638000,-623.0,0.00019995,2]
[424352423,1780782638000,-623.0,0.00019995,2]
[424352429,1780782638000,-623.0,0.00019995,2]
[424352425,1780782638000,-623.0,0.00019995,2]
[424352407,1780782638000,-623.0,0.00019995,2]
[424352421,1780782638000,-623.0,0.00019995,2]
[424352433,1780782638000,-623.0,0.00019995,2]
[424352411,1780782638000,-623.0,0.00019995,2]
[424352434,1780782638000,-623.0,0.00019995,2]
[424352470,1780782638000,-1132.77304209,0.00020547,2]
[424352438,1780782638000,-623.0,0.00019995,2]
[424352452,1780782638000,-1604.46256042,0.000201,2]
[424352454,1780782638000,-516.71530411,0.000201,2]
[424352448,1780782638000,-776.61733527,0.00019995,2]
[424352450,1780782638000,-359.826,0.00020097,2]
[424352457,1780782638000,-191.7388,0.00020174,2]
[424352466,1780782638000,-516.71530411,0.000205,2]
[424352474,1780782638000,-931.94080233,0.00020547,2]
[424352460,1780782638000,-1604.46256042,0.000203,2]
[424352472,1780782638000,-914.67918023,0.00020547,2]
[424352459,1780782638000,-500.0,0.00020269,2]
[424352462,1780782638000,-516.71530411,0.000203,2]
[424352419,1780782638000,-623.0,0.00019995,2]
[424352464,1780782638000,-1604.46256042,0.000205,2]
[424352442,1780782638000,-623.0,0.00019995,2]
[424352409,1780782638000,-151.5,0.00019995,2]
[424352588,1780782638000,-1200.0,0.00023835,5]
[424352413,1780782638000,-151.5,0.00019995,2]
[424352468,1780782638000,-500.0,0.00020543,2]
[424352355,1780782638000,-500.0,0.00019159,2]
[424352353,1780782638000,-500.0,0.00019159,2]
[424352351,1780782638000,-217.03971304,0.00019159,2]
[424352356,1780782638000,-412.58235682,0.00019159,2]
[424352358,1780782638000,-6088.83036308,0.0001916,2]
[424352362,1780782638000,-177.74562926,0.0001926,2]
[424352361,1780782638000,-566.38652105,0.0001926,2]
[424352364,1780782638000,-457.33959011,0.0001926,2]
[424352366,1780782638000,-465.97040116,0.0001926,2]
[424352368,1780782638000,-191.7388,0.00019391,2]
[424352370,1780782638000,-755.18202806,0.00019627,2]
[424352372,1780782638000,-609.78612015,0.00019627,2]
[424352374,1780782638000,-621.29386822,0.00019627,2]
[424352417,1780782638000,-241.93246848,0.00019995,2]
[424352376,1780782638000,-211.12731757,0.00019627,2]
[424352380,1780782638000,-1837.0,0.00019701,2]
[424352384,1780782638000,-2207.0,0.00019701,2]
[424352390,1780782638000,-160.0,0.00019872,2]
[424352388,1780782638000,-5890.37740424,0.000198,2]
[424352386,1780782638000,-444.0,0.00019701,2]
[424352382,1780782638000,-3632.0,0.00019701,2]
[424352394,1780782638000,-516.71530411,0.000199,2]
[424352392,1780782638000,-1604.46256042,0.000199,2]
[424352395,1780782638000,-623.0,0.00019995,2]
[424352397,1780782638000,-151.5,0.00019995,2]
[424352399,1780782638000,-623.0,0.00019995,2]
[424352403,1780782638000,-623.0,0.00019995,2]
[424352401,1780782638000,-151.5,0.00019995,2]
[424352405,1780782638000,-151.5,0.00019995,2]
[424352378,1780782638000,-162.34785675,0.00019627,2]
[424352476,1780782638000,-516.28705968,0.000206,2]
[424352610,1780782638000,-415.79344599,0.00024484,120]
[424352480,1780782638000,-516.71530411,0.000207,2]
[424352540,1780782638000,-151.0,0.00022724,3]
[424352558,1780782638000,-151.0,0.00022724,3]
[424352536,1780782638000,-151.0,0.00022724,3]
[424352556,1780782638000,-151.0,0.00022724,3]
[424352548,1780782638000,-151.0,0.00022724,3]
[424352482,1780782638000,-500.0,0.00020817,2]
[424352562,1780782638000,-151.0,0.00022724,3]
[424352564,1780782638000,-160.0,0.00023,2]
[424352567,1780782638000,-156.49650076,0.0002306,5]
[424352578,1780782638000,-38000.0,0.00023719,7]
[424352574,1780782638000,-300.0,0.00023719,4]
[424352572,1780782638000,-186.74585698,0.00023619,2]
[424352570,1780782638000,-269.50535444,0.00023619,2]
[424352576,1780782638000,-300.0,0.00023719,2]
[424352569,1780782638000,-199.01879555,0.0002306,5]
[424352580,1780782638000,-160.0,0.00023719,7]
[424352584,1780782638000,-17959.33505998,0.00023728,7]
[424352582,1780782638000,-38000.0,0.00023728,7]
[424352586,1780782638000,-156.49650076,0.00023782,5]
[424352604,1780782638000,-600.0,0.00024218,10]
[424352600,1780782638000,-160.0,0.00024,7]
[424352590,1780782638000,-1200.0,0.00023835,5]
[424352598,1780782638000,-186.74585698,0.00023885,2]
[424352592,1780782638000,-1200.0,0.00023835,5]
[424352594,1780782638000,-1200.0,0.00023835,5]
[424352602,1780782638000,-186.74585698,0.00024152,2]
[424352596,1780782638000,-700.0,0.00023835,5]
[424352608,1780782638000,-1397.91120349,0.00024478,2]
[424352606,1780782638000,-186.74585698,0.00024418,2]
[424352547,1780782638000,-151.0,0.00022724,3]
[424352544,1780782638000,-151.0,0.00022724,3]
[424352554,1780782638000,-151.0,0.00022724,3]
[424352538,1780782638000,-151.0,0.00022724,3]
[424352491,1780782638000,-1604.46256042,0.000211,2]
[424352484,1780782638000,-1604.46256042,0.000209,2]
[424352499,1780782638000,-1321.56854911,0.00021374,2]
[424352486,1780782638000,-191.7388,0.00020958,2]
[424352493,1780782638000,-217.33514429,0.000212,2]
[424352478,1780782638000,-1604.46256042,0.000207,2]
[424352488,1780782638000,-500.0,0.00021091,2]
[424352495,1780782638000,-1604.46256042,0.000213,2]
[424352560,1780782638000,-151.0,0.00022724,3]
[424352501,1780782638000,-1087.26426938,0.00021374,2]
[424352503,1780782638000,-178.699236,0.00021455,2]
[424352505,1780782638000,-1604.46256042,0.000216,2]
[424352509,1780782638000,-1604.46256042,0.000218,2]
[424352507,1780782638000,-191.7388,0.00021741,2]
[424352513,1780782638000,-191.7388,0.00022524,2]
[424352497,1780782638000,-500.0,0.00021365,2]
[424352518,1780782638000,-1837.0,0.00022701,2]
[424352522,1780782638000,-444.0,0.00022701,2]
[424352542,1780782638000,-151.0,0.00022724,3]
[424352550,1780782638000,-151.0,0.00022724,3]
[424352534,1780782638000,-151.0,0.00022724,3]
[424352532,1780782638000,-151.0,0.00022724,3]
[424352528,1780782638000,-151.0,0.00022724,3]
[424352530,1780782638000,-151.0,0.00022724,3]
[424352552,1780782638000,-151.0,0.00022724,3]
[424352524,1780782638000,-151.0,0.00022724,3]
[424352520,1780782638000,-3632.0,0.00022701,2]
[424352511,1780782638000,-196.856999,0.00022368,5]
[424352515,1780782638000,-1242.58773644,0.00022616,2]
[424352517,1780782638000,-5890.37740421,0.00022671,2]
[424352526,1780782638000,-151.0,0.00022724,3]
[424352653,1780782639000,-200.7172192,0.00024518,3]
[424352639,1780782639000,-252.87861861,0.00024509,120]
[424352641,1780782639000,-157.0,0.00024509,120]
[424352648,1780782639000,-158.0,0.00024518,120]
[424352645,1780782639000,-156.49650076,0.00024518,5]
[424352649,1780782639000,-119236.07513624,0.00024518,2]
[424352643,1780782639000,-151.0,0.00024513,6]
[424352663,1780782639000,-156.48,0.00024518,2]
[424352659,1780782639000,-1408.64117007,0.00024518,2]
[424352665,1780782639000,-156.48,0.00024518,2]
[424352678,1780782639000,-457.1957263,0.00024518,2]
[424352672,1780782639000,-156.48,0.00024518,2]
[424352657,1780782639000,-999.999999,0.00024518,2]
[424352676,1780782639000,-151.0,0.00024518,2]
[424352661,1780782639000,-156.5,0.00024518,2]
[424352655,1780782639000,-165114.31892175,0.00024518,2]
[424352674,1780782639000,-156.48,0.00024518,2]
[424352637,1780782639000,-160.0,0.000245,30]
[424352682,1780782639000,-468.64214179,0.00024518,2]
[424352612,1780782639000,-320.11922034,0.00024484,120]
[424352616,1780782639000,-318.55968363,0.00024484,120]
[424352614,1780782639000,-307.06925777,0.00024484,120]
[424352624,1780782639000,-306.18291244,0.00024484,2]
[424352628,1780782639000,-268.173,0.00024484,2]
[424352651,1780782639000,-150.0,0.00024518,2]
[424352629,1780782639000,-179.645,0.00024484,3]
[424352618,1780782639000,-830.54617014,0.00024484,120]
[424352622,1780782639000,-1474.97321021,0.00024484,120]
[424352620,1780782639000,-203.29116952,0.00024484,120]
[424352632,1780782639000,-500.0,0.00024497,9]
[424352633,1780782639000,-151.0,0.00024499,4]
[424352635,1780782639000,-22806.44456196,0.000245,30]
[424352626,1780782639000,-151.0,0.00024484,2]
[424352670,1780782639000,-156.48,0.00024518,2]
[424352696,1780782639000,-151.5,0.00024658,2]
[424352669,1780782639000,-156.48,0.00024518,2]
[424352729,1780782639000,-151.0,0.000252,13]
[424352738,1780782639000,-151.1,0.00025353,2]
[424352734,1780782639000,-151.1,0.00025353,2]
[424352736,1780782639000,-151.1,0.00025353,2]
[424352732,1780782639000,-151.09,0.00025353,2]
[424352725,1780782639000,-638.13462063,0.00025042,2]
[424352740,1780782639000,-151.1,0.00025353,2]
[424352742,1780782639000,-151.0,0.000254,13]
[424352730,1780782639000,-151.0,0.000253,17]
[424352721,1780782639000,-150.0,0.00025,2]
[424352723,1780782639000,-150.0,0.00025,2]
[424352719,1780782639000,-160.0,0.00025,3]
[424352714,1780782639000,-217.33514429,0.000249,2]
[424352716,1780782639000,-500.0,0.00025,2]
[424352727,1780782639000,-588.258309,0.000252,5]
[424352712,1780782639000,-178.699236,0.0002488,2]
[424352700,1780782639000,-155.58551373,0.0002466,2]
[424352680,1780782639000,-326.3819852,0.00024518,2]
[424352667,1780782639000,-156.48,0.00024518,2]
[424352684,1780782639000,-2000.0,0.00024519,120]
[424352688,1780782639000,-1044.18952589,0.00024658,120]
[424352702,1780782639000,-364.81,0.000248,2]
[424352690,1780782639000,-380.0,0.00024658,2]
[424352706,1780782639000,-274.69150743,0.000248,2]
[424352686,1780782639000,-151.0,0.000246,10]
[424352692,1780782639000,-151.5,0.00024658,2]
[424352694,1780782639000,-151.5,0.00024658,2]
[424352708,1780782639000,-645.58,0.000248,2]
[424352710,1780782639000,-279.58999341,0.000248,2]
[424352699,1780782639000,-279.03114375,0.00024658,2]
[424352704,1780782639000,-364.26,0.000248,2]
[424352744,1780782639000,-40386.78554918,0.00025444,2]
[424352883,1780782640000,-623.0,0.00019995,2]
[424352891,1780782640000,-4619.92839,0.00025444,2]
[424352885,1780782640000,-623.0,0.00019995,2]
[424352889,1780782640000,-1031.0,0.00025,2]
[424352887,1780782640000,-1034.65983877,0.00024,2]
[424353062,1780782643000,-587.50156168,0.00019995,2]
[424360920,1780782967000,166.66666667,0.00024531,120]
[424360921,1780782968000,166.66666667,0.00024531,120]
[424360922,1780782969000,166.66666667,0.00024531,120]
[424360923,1780783533000,-357.26982633,0.00015718,2]
[424360924,1780783630000,-430.12038098,0.00015405,2]
[424360925,1780783653000,-427.89283755,0.00015405,2]
[424360954,1780783831000,-637.63281249,0.00015098,2]
[424361617,1780783838000,-557.81871281,0.00018671,2]
[424361619,1780783838000,-214.57927572,0.00018684,2]
[424361606,1780783838000,-346.01481917,0.00018132,2]
[424361616,1780783838000,-156.49650075,0.00018639,2]
[424361610,1780783838000,-154.90867448,0.00018144,2]
[424361614,1780783838000,-233.57670126,0.00018596,2]
[424361613,1780783838000,-5863.10695941,0.00018584,2]
[424361618,1780783838000,-401.87436446,0.00018684,2]
[424361611,1780783838000,-720.0,0.00018173,2]
[424361612,1780783838000,-175.819965,0.00018235,2]
[424361615,1780783838000,-1433.83,0.0001863,2]
[424361609,1780783838000,-231.11624588,0.00018144,2]
[424361607,1780783838000,-160.57202965,0.00018132,2]
[424361602,1780783838000,-173.00740959,0.00017304,2]
[424361604,1780783838000,-262.5026737,0.0001799,2]
[424361596,1780783838000,-167.0,0.00015559,2]
[424361599,1780783838000,-500.0,0.00017116,2]
[424361598,1780783838000,-183.15858,0.00017082,2]
[424361601,1780783838000,-185.93957094,0.00017291,2]
[424361605,1780783838000,-371.87914187,0.00018119,2]
[424361597,1780783838000,-600.0,0.00016521,2]
[424361595,1780783838000,-357.0,0.00015559,2]
[424361594,1780783838000,-5000.0,0.00015251,2]
[424361603,1780783838000,-184.08782891,0.00017304,2]
[424361593,1780783838000,-2774.21075616,0.00015098,2]
[424361592,1780783838000,-47.54364862,0.00015098,2]
[424361620,1780783838000,-261.8737841,0.00018684,2]
[424361600,1780783838000,-1000.0,0.00017267,2]
[424361623,1780783838000,-321.14405929,0.00018684,2]
[424361608,1780783838000,-185.18110858,0.00018144,2]
[424361624,1780783838000,-370.36221715,0.00018696,2]
[424361622,1780783838000,-519.02222876,0.00018684,2]
[424361650,1780783838000,-317.83543937,0.00019065,2]
[424361651,1780783838000,-693.34873765,0.00019065,2]
[424361647,1780783838000,-481.71608894,0.00019065,2]
[424361652,1780783838000,-250.07231548,0.00019065,2]
[424361649,1780783838000,-446.3340773,0.00019065,2]
[424361648,1780783838000,-197.48689933,0.00019065,2]
[424361643,1780783838000,-500.0,0.00019052,2]
[424361640,1780783838000,-380.70218328,0.00019052,2]
[424361641,1780783838000,-736.35131566,0.00019052,2]
[424361642,1780783838000,-364.6698954,0.00019052,2]
[424361638,1780783838000,-692.02963835,0.00019052,2]
[424361635,1780783838000,-365.16775391,0.00019052,2]
[424361637,1780783838000,-327.43814294,0.00019052,2]
[424361646,1780783838000,-350.07114594,0.00019065,2]
[424361644,1780783838000,-210.62633607,0.00019059,2]
[424361645,1780783838000,-316.59195418,0.00019065,2]
[424361625,1780783838000,-462.23249176,0.00018696,2]
[424361639,1780783838000,-414.81834356,0.00019052,2]
[424361631,1780783838000,-230.76133282,0.00019038,2]
[424361628,1780783838000,-1433.83,0.00018904,2]
[424361626,1780783838000,-309.81734896,0.00018696,2]
[424361633,1780783838000,-602.8115467,0.00019052,2]
[424361632,1780783838000,-743.75828374,0.00019038,2]
[424361621,1780783838000,-163.71907147,0.00018684,2]
[424361630,1780783838000,-217.33514429,0.00018959,2]
[424361636,1780783838000,-523.74756819,0.00019052,2]
[424361629,1780783838000,-1386.48716172,0.00018939,2]
[424361634,1780783838000,-160.86326811,0.00019052,2]
[424361627,1780783838000,-396.907654,0.00018845,2]
[424361693,1780783839000,-1326.3083736,0.000207,2]
[424361696,1780783839000,-192.10665944,0.0002081,2]
[424361694,1780783839000,-814.08852794,0.000207,2]
[424361690,1780783839000,-814.08852794,0.000205,2]
[424361692,1780783839000,-250.0,0.00020592,2]
[424361691,1780783839000,-1433.83,0.00020548,2]
[424361687,1780783839000,-1326.3083736,0.000203,2]
[424361689,1780783839000,-1326.3083736,0.000205,2]
[424361699,1780783839000,-168.3888056,0.00020869,2]
[424361697,1780783839000,-1189.02572462,0.00020813,2]
[424361688,1780783839000,-814.08852794,0.000203,2]
[424361701,1780783839000,-88423.35274501,0.0002091,2]
[424361695,1780783839000,-1319.56022669,0.00020799,2]
[424361703,1780783839000,-300.0,0.0002091,3]
[424361713,1780783839000,-333.76327106,0.00022194,2]
[424361704,1780783839000,-1433.83,0.00021096,2]
[424361725,1780783839000,-861.20697743,0.00022194,2]
[424361698,1780783839000,-1433.83,0.00020822,2]
[424361726,1780783839000,-840.00855585,0.00022223,2]
[424361714,1780783839000,-632.85352455,0.00022194,2]
[424361724,1780783839000,-478.44832079,0.00022194,2]
[424361709,1780783839000,-1000.0,0.00021989,10]
[424361702,1780783839000,-66624.73405499,0.0002091,2]
[424361706,1780783839000,-5863.10695934,0.00021629,2]
[424361708,1780783839000,-1433.83,0.00021918,2]
[424361712,1780783839000,-431.29539935,0.00022194,2]
[424361700,1780783839000,-300.0,0.00020889,2]
[424361705,1780783839000,-1433.83,0.0002137,2]
[424361711,1780783839000,-1433.83,0.00022192,2]
[424361710,1780783839000,-1432.02097298,0.00022056,2]
[424361707,1780783839000,-1433.83,0.00021644,2]
[424361682,1780783839000,-814.08852794,0.000201,2]
[424361668,1780783839000,-1433.83,0.00019726,2]
[424361676,1780783839000,-1054.31632388,0.00019971,2]
[424361716,1780783839000,-2025.13127857,0.00022194,2]
[424361658,1780783839000,-429.15855145,0.0001913,2]
[424361654,1780783839000,-360.5183271,0.0001911,2]
[424361653,1780783839000,-510.76635215,0.00019065,2]
[424361656,1780783839000,-394.76613693,0.0001913,2]
[424361659,1780783839000,-1433.83,0.00019178,2]
[424361657,1780783839000,-169.64702593,0.0001913,2]
[424361655,1780783839000,-170.20216231,0.0001911,2]
[424361660,1780783839000,-500.0,0.00019325,2]
[424361662,1780783839000,-865.03704793,0.00019419,2]
[424361672,1780783839000,-3632.0,0.00019876,2]
[424361671,1780783839000,-2206.0,0.00019876,2]
[424361673,1780783839000,-1326.3083736,0.000199,2]
[424361670,1780783839000,-1764.0,0.00019876,2]
[424361661,1780783839000,-878.59693657,0.00019419,2]
[424361663,1780783839000,-1433.83,0.00019452,2]
[424361667,1780783839000,-444.0,0.00019657,2]
[424361681,1780783839000,-1326.3083736,0.000201,2]
[424361679,1780783839000,-1433.83,0.0002,2]
[424361680,1780783839000,-500.0,0.00020099,2]
[424361677,1780783839000,-1038.04445752,0.00019971,2]
[424361674,1780783839000,-814.08852794,0.000199,2]
[424361686,1780783839000,-1433.83,0.00020274,2]
[424361678,1780783839000,-864.0,0.0001999,2]
[424361684,1780783839000,-426.9,0.00020126,2]
[424361685,1780783839000,-150.308,0.00020126,2]
[424361675,1780783839000,-160.0,0.000199,2]
[424361669,1780783839000,-1415.0,0.00019876,2]
[424361665,1780783839000,-182.392,0.00019657,2]
[424361666,1780783839000,-203.233,0.00019657,2]
[424361664,1780783839000,-500.0,0.00019599,2]
[424361683,1780783839000,-472.50481267,0.00020107,2]
[424361719,1780783839000,-6201.96454063,0.00022194,2]
[424361759,1780783839000,-439.84186838,0.00024384,2]
[424361720,1780783839000,-414.00337899,0.00022194,2]
[424361760,1780783839000,-500.0,0.00024384,2]
[424361754,1780783839000,-151.5,0.00024384,2]
[424361765,1780783839000,-500.0,0.00024384,2]
[424361762,1780783839000,-500.0,0.00024384,2]
[424361763,1780783839000,-151.5,0.00024384,2]
[424361767,1780783839000,-248.72329838,0.00024384,2]
[424361761,1780783839000,-151.5,0.00024384,2]
[424361768,1780783839000,-500.0,0.00024384,2]
[424361766,1780783839000,-500.0,0.00024384,2]
[424361769,1780783839000,-500.0,0.00024384,2]
[424361771,1780783839000,-500.0,0.00024384,2]
[424361781,1780783839000,-500.0,0.00024384,2]
[424361715,1780783839000,-1139.1363442,0.00022194,2]
[424361770,1780783839000,-500.0,0.00024384,2]
[424361758,1780783839000,-500.0,0.00024384,2]
[424361785,1780783839000,-500.0,0.00024384,2]
[424361773,1780783839000,-500.0,0.00024384,2]
[424361772,1780783839000,-500.0,0.00024384,2]
[424361774,1780783839000,-500.0,0.00024384,2]
[424361787,1780783839000,-500.0,0.00024384,2]
[424361786,1780783839000,-500.0,0.00024384,2]
[424361784,1780783839000,-500.0,0.00024384,2]
[424361775,1780783839000,-385.54650589,0.00024384,2]
[424361779,1780783839000,-397.44784931,0.00024384,2]
[424361778,1780783839000,-500.0,0.00024384,2]
[424361789,1780783839000,-500.0,0.00024384,2]
[424361792,1780783839000,-500.0,0.00024384,2]
[424361791,1780783839000,-500.0,0.00024384,2]
[424361790,1780783839000,-500.0,0.00024384,2]
[424361788,1780783839000,-607.97814878,0.00024384,2]
[424361776,1780783839000,-500.0,0.00024384,2]
[424361757,1780783839000,-500.0,0.00024384,2]
[424361783,1780783839000,-500.0,0.00024384,2]
[424361753,1780783839000,-1000.0,0.000243,2]
[424361738,1780783839000,-839323.228,0.00023444,2]
[424361733,1780783839000,-1415.0,0.00022876,2]